fUST/lending_fUST_20250102
["ID","MTS","AMOUNT","RATE_DAILY","PERIOD"]
[347380400,1735747232761,160.0,0.00023912,120]
[347380402,1735747291859,160.0,0.00022531,120]
[347380404,1735747351292,160.0,0.00022994,120]
[347380405,1735747398714,5000.0,0.00015022,7]
[347380406,1735747407096,196.24264449,0.00015022,7]
[347380407,1735747411310,160.0,0.00023256,120]
[347380408,1735747414968,4042.82192087,0.00015022,7]
[347380410,1735747471382,160.0,0.00023108,120]
[347380411,1735747532581,160.0,0.00022146,120]
[347380412,1735747591288,160.0,0.000236,120]
[347380414,1735747651348,160.0,0.00024317,120]
[347380415,1735747711650,160.0,0.00022178,120]
[347380417,1735747771373,160.0,0.00023198,120]
[347380418,1735747813110,486.16846212,0.00015022,7]
[347380419,1735747821634,486.16846212,0.00015022,7]
[347380424,1735747831314,160.0,0.00024216,120]
[347380476,1735747831973,-166.463239,0.00013973,2]
[347380478,1735747831982,-217.606761,0.00016465,2]
[347380480,1735747831994,-282.393239,0.00016465,2]
[347380482,1735747832003,-274.55281,0.00016569,2]
[347380485,1735747832012,-43.053951,0.00016637,2]
[347380501,1735747832091,-312.8673719,0.00016637,2]
[347380503,1735747832101,-833.149671,0.00016661,2]
[347380505,1735747832110,-319.3152203,0.0001671,2]
[347380507,1735747832119,-193.6813373,0.00017395,2]
[347380509,1735747832128,-3982.39430949,0.00017854,2]
[347380511,1735747832138,-300.0,0.00017988,2]
[347380513,1735747832147,-426.41011012,0.00017989,2]
[347380572,1735747837816,-446.20833079,0.00017989,2]
[347380578,1735747837873,-7550.38155909,0.00017989,2]
[347380580,1735747837883,-5164.75756255,0.00018,2]
[347380582,1735747837892,-153.0,0.0001803,2]
[347380584,1735747837901,-153.0,0.0001803,2]
[347380586,1735747837910,-153.0,0.0001803,2]
[347380588,1735747837919,-153.0,0.0001803,2]
[347380590,1735747837928,-153.0,0.0001803,2]
[347380592,1735747837938,-153.0,0.0001803,2]
[347380594,1735747837947,-153.0,0.0001803,2]
[347380596,1735747837956,-153.0,0.0001803,2]
[347380598,1735747837965,-153.0,0.0001803,2]
[347380600,1735747837974,-153.0,0.0001803,2]
[347380602,1735747837984,-153.0,0.0001803,2]
[347380604,1735747837993,-153.0,0.0001803,2]
[347380606,1735747838003,-153.0,0.0001803,2]
[347380608,1735747838013,-153.0,0.0001803,2]
[347380611,1735747838022,-153.0,0.0001803,2]
[347380614,1735747838032,-153.0,0.0001803,2]
[347380617,1735747838041,-153.0,0.0001803,2]
[347380620,1735747838051,-153.0,0.0001803,2]
[347380623,1735747838061,-153.0,0.00018031,2]
[347380626,1735747838071,-349.4654952,0.00018055,2]
[347380628,1735747838080,-150.0,0.00018126,2]
[347380631,1735747838089,-534.0,0.00018126,2]
[347380634,1735747838098,-2093.0,0.00018126,2]
[347380636,1735747838107,-2348.0,0.00018126,2]
[347380638,1735747838116,-19070.1925861,0.00018212,2]
[347380640,1735747838125,-705.1227752,0.00018241,2]
[347380642,1735747838134,-618.0,0.000183,2]
[347380644,1735747838143,-160.0,0.00018548,3]
[347380646,1735747838153,-303.30286924,0.00018548,5]
[347380648,1735747838162,-502.847,0.0001874,2]
[347380650,1735747838171,-209.55139946,0.00018795,2]
[347380652,1735747838181,-493.1691717,0.00018795,2]
[347380654,1735747838191,-309.5116104,0.00018795,2]
[347380656,1735747838200,-307.6506762,0.00018795,2]
[347380658,1735747838209,-155.9606028,0.00018795,2]
[347380660,1735747838217,-306.5842407,0.00018795,2]
[347380662,1735747838227,-339.892,0.000188,2]
[347380664,1735747838236,-209.55139946,0.00018904,2]
[347380666,1735747838245,-185.65,0.00018904,2]
[347380668,1735747838255,-1328.30601136,0.00018912,2]
[347380670,1735747838264,-288.84367786,0.00018978,2]
[347380672,1735747838273,-209.55139946,0.00018986,2]
[347380674,1735747838282,-462.8224189,0.00019,2]
[347380676,1735747838291,-151.0,0.0001905,4]
[347380678,1735747838302,-209.55139946,0.00019068,2]
[347380680,1735747838313,-1601.03558092,0.00019075,2]
[347380682,1735747838323,-1263.73742985,0.00019078,2]
[347380685,1735747838332,-3000.0,0.00019078,2]
[347380687,1735747838342,-32565.83555518,0.00019078,2]
[347380689,1735747838351,-1263.73742982,0.00019147,2]
[347380691,1735747838360,-209.55139946,0.00019151,2]
[347380693,1735747838369,-500.0,0.00019168,2]
[347380695,1735747838378,-500.78274738,0.00019173,2]
[347380697,1735747838387,-578.5146873,0.00019173,2]
[347380699,1735747838396,-259.95870971,0.00019173,2]
[347380700,1735747838406,-501.41942562,0.00019173,2]
[347380702,1735747838415,-502.89127344,0.00019173,2]
[347380705,1735747838425,-500.0,0.00019173,2]
[347380707,1735747838435,-576.93285536,0.00019173,2]
[347380709,1735747838444,-500.0,0.00019173,2]
[347380711,1735747838453,-500.0,0.00019173,2]
[347380713,1735747838462,-500.0,0.00019173,2]
[347380715,1735747838471,-203.46562858,0.00019173,2]
[347380717,1735747838480,-501.9506799,0.00019173,2]
[347380720,1735747838500,-500.0,0.00019173,2]
[347380722,1735747838511,-447.24459213,0.00019173,2]
[347380724,1735747838520,-500.0,0.00019173,2]
[347380726,1735747838530,-500.0,0.00019173,2]
[347380728,1735747838541,-536.91689023,0.00019173,2]
[347380730,1735747838551,-500.0,0.00019173,2]
[347380732,1735747838563,-152.18647337,0.00019173,2]
[347380734,1735747838572,-426.06742865,0.00019173,2]
[347380736,1735747838583,-219.68265849,0.00019173,2]
[347380738,1735747838592,-500.0,0.00019173,2]
[347380740,1735747838602,-311.93715762,0.00019173,2]
[347380742,1735747838613,-512.97638242,0.00019174,2]
[347380744,1735747838623,-184.45563189,0.00019174,2]
[347380747,1735747838634,-500.0,0.00019174,2]
[347380749,1735747838644,-500.0,0.00019174,2]
[347380751,1735747838654,-621.16456935,0.00019174,2]
[347380753,1735747838663,-500.0,0.00019174,2]
[347380755,1735747838673,-623.34273011,0.00019174,2]
[347380757,1735747838683,-500.0,0.00019174,2]
[347380759,1735747838693,-154.78894101,0.00019174,2]
[347380761,1735747838703,-500.0,0.00019174,2]
[347380763,1735747838712,-500.0,0.00019174,2]
[347380765,1735747838722,-273.30445263,0.00019174,2]
[347380767,1735747838732,-500.0,0.00019174,2]
[347380769,1735747838742,-500.0,0.00019174,2]
[347380771,1735747838752,-196.25312902,0.00019174,2]
[347380774,1735747838762,-500.0,0.00019174,2]
[347380776,1735747838772,-500.0,0.00019174,2]
[347380778,1735747838781,-500.0,0.00019174,2]
[347380780,1735747838791,-500.0,0.00019174,2]
[347380782,1735747838800,-500.0,0.00019174,2]
[347380784,1735747838810,-500.0,0.00019174,2]
[347380786,1735747838819,-500.0,0.00019174,2]
[347380788,1735747838828,-500.0,0.00019174,2]
[347380790,1735747838838,-500.0,0.00019174,2]
[347380792,1735747838847,-500.0,0.00019174,2]
[347380794,1735747838856,-500.0,0.00019174,2]
[347380796,1735747838866,-500.0,0.00019174,2]
[347380798,1735747838876,-500.0,0.00019174,2]
[347380800,1735747838885,-500.0,0.00019174,2]
[347380802,1735747838894,-331.08084774,0.00019174,2]
[347380804,1735747838904,-500.0,0.00019174,2]
[347380806,1735747838914,-500.0,0.00019174,2]
[347380808,1735747838923,-500.0,0.00019174,2]
[347380810,1735747838933,-500.0,0.00019174,2]
[347380813,1735747838943,-500.0,0.00019174,2]
[347380815,1735747838952,-500.0,0.00019174,2]
[347380817,1735747838962,-500.0,0.00019174,2]
[347380819,1735747838972,-500.0,0.00019174,2]
[347380821,1735747838982,-500.0,0.00019174,2]
[347380823,1735747838993,-500.0,0.00019174,2]
[347380825,1735747839003,-500.0,0.00019174,2]
[347380827,1735747839013,-500.0,0.00019174,2]
[347380829,1735747839023,-500.0,0.00019174,2]
[347380831,1735747839032,-500.0,0.00019174,2]
[347380833,1735747839042,-500.0,0.00019174,2]
[347380835,1735747839052,-500.0,0.00019174,2]
[347380837,1735747839064,-500.0,0.00019174,2]
[347380839,1735747839073,-500.0,0.00019174,2]
[347380841,1735747839083,-500.0,0.00019174,2]
[347380843,1735747839092,-500.0,0.00019174,2]
[347380845,1735747839102,-500.0,0.00019174,2]
[347380847,1735747839112,-500.0,0.00019174,2]
[347380849,1735747839124,-500.0,0.00019174,2]
[347380852,1735747839134,-500.0,0.00019174,2]
[347380854,1735747839144,-500.0,0.00019174,2]
[347380857,1735747839154,-500.0,0.00019174,2]
[347380859,1735747839163,-308.0077109,0.00019174,2]
[347380861,1735747839173,-500.0,0.00019174,2]
[347380863,1735747839184,-500.0,0.00019174,2]
[347380866,1735747839193,-500.0,0.00019174,2]
[347380868,1735747839203,-500.0,0.00019174,2]
[347380870,1735747839213,-500.0,0.00019174,2]
[347380872,1735747839223,-500.0,0.00019174,2]
[347380874,1735747839232,-500.0,0.00019174,2]
[347380876,1735747839242,-500.0,0.00019174,2]
[347380878,1735747839251,-500.0,0.00019174,2]
[347380880,1735747839261,-500.0,0.00019174,2]
[347380882,1735747839270,-500.0,0.00019174,2]
[347380884,1735747839279,-500.0,0.00019174,2]
[347380886,1735747839288,-500.0,0.00019174,2]
[347380888,1735747839298,-500.0,0.00019174,2]
[347380891,1735747839309,-545.30068096,0.00019177,2]
[347380893,1735747839318,-582.34493158,0.00019177,2]
[347380895,1735747839329,-313.355992,0.00019177,2]
[347380897,1735747839342,-500.0,0.00019178,2]
[347380899,1735747839352,-500.0,0.00019178,2]
[347380901,1735747839361,-500.0,0.00019178,2]
[347380903,1735747839371,-500.0,0.00019178,2]
[347380905,1735747839380,-495.40703927,0.00019178,2]
[347380907,1735747839389,-266.18337029,0.00019178,2]
[347380909,1735747839398,-500.24047302,0.00019178,2]
[347380911,1735747839408,-320.79362068,0.00019178,2]
[347380913,1735747839417,-500.81546027,0.00019178,2]
[347380915,1735747839426,-590.94,0.00019178,2]
[347380917,1735747839435,-500.61682899,0.00019178,2]
[347380919,1735747839445,-558.46825229,0.00019178,2]
[347380921,1735747839455,-500.0,0.00019178,2]
[347380923,1735747839465,-6661.47,0.00019178,2]
[347380925,1735747839474,-500.0,0.00019178,2]
[347380928,1735747839483,-500.0,0.00019178,2]
[347380930,1735747839494,-500.0,0.00019178,2]
[347380932,1735747839503,-500.0,0.00019178,2]
[347380934,1735747839514,-501.69171274,0.00019178,2]
[347380936,1735747839524,-500.0,0.00019178,2]
[347380938,1735747839533,-502.39980787,0.00019178,2]
[347380940,1735747839546,-500.0,0.00019178,2]
[347380942,1735747839558,-500.0,0.00019178,2]
[347380944,1735747839568,-500.0,0.00019178,2]
[347380946,1735747839577,-500.0,0.00019178,2]
[347380948,1735747839588,-504.10355821,0.00019178,2]
[347380950,1735747839597,-989.83,0.00019178,2]
[347380952,1735747839607,-500.0,0.00019178,2]
[347380954,1735747839616,-500.0,0.00019178,2]
[347380956,1735747839627,-500.0,0.00019178,2]
[347380958,1735747839636,-502.66470104,0.00019178,2]
[347380960,1735747839645,-500.0,0.00019178,2]
[347380962,1735747839655,-500.47102507,0.00019178,2]
[347380964,1735747839664,-500.0,0.00019178,2]
[347380966,1735747839675,-500.0,0.00019178,2]
[347380969,1735747839685,-550.49097973,0.00019178,2]
[347380971,1735747839694,-500.0,0.00019178,2]
[347380973,1735747839704,-500.0,0.00019178,2]
[347380975,1735747839714,-417.55789877,0.00019178,2]
[347380977,1735747839723,-500.0,0.00019178,2]
[347380979,1735747839733,-500.0,0.00019178,2]
[347380981,1735747839742,-500.0,0.00019178,2]
[347380983,1735747839752,-501.59012217,0.00019178,2]
[347380985,1735747839761,-500.0,0.00019178,2]
[347380987,1735747839771,-500.61405082,0.00019178,2]
[347380989,1735747839780,-500.0,0.00019178,2]
[347380991,1735747839789,-500.0,0.00019178,2]
[347380993,1735747839798,-500.0,0.00019178,2]
[347380995,1735747839811,-500.0,0.00019178,2]
[347380997,1735747839820,-500.0,0.00019178,2]
[347380999,1735747839829,-500.0,0.00019178,2]
[347381001,1735747839838,-1533.12,0.00019178,2]
[347381003,1735747839848,-500.0,0.00019178,2]
[347381005,1735747839857,-500.0,0.00019178,2]
[347381007,1735747839867,-500.0,0.00019178,2]
[347381009,1735747839876,-500.0,0.00019178,2]
[347381011,1735747839885,-500.0,0.00019178,2]
[347381013,1735747839895,-500.0,0.00019178,2]
[347381015,1735747839905,-500.0,0.00019178,2]
[347381017,1735747839914,-500.0,0.00019178,2]
[347381019,1735747839923,-500.0,0.00019178,2]
[347381021,1735747839933,-500.0,0.00019178,2]
[347381023,1735747839943,-500.0,0.00019178,2]
[347381025,1735747839952,-500.0,0.00019178,2]
[347381043,1735747840107,-500.0,0.00019178,2]
[347381046,1735747840117,-500.0,0.00019178,2]
[347381048,1735747840127,-500.0,0.00019178,2]
[347381050,1735747840136,-500.0,0.00019178,2]
[347381052,1735747840145,-500.0,0.00019178,2]
[347381054,1735747840155,-500.0,0.00019178,2]
[347381056,1735747840164,-500.0,0.00019178,2]
[347381058,1735747840173,-500.0,0.00019178,2]
[347381060,1735747840182,-500.0,0.00019178,2]
[347381062,1735747840192,-500.0,0.00019178,2]
[347381064,1735747840201,-502.20093038,0.00019178,2]
[347381066,1735747840211,-500.0,0.00019178,2]
[347381068,1735747840221,-500.0,0.00019178,2]
[347381070,1735747840229,-500.0,0.00019178,2]
[347381072,1735747840238,-530.06576934,0.00019178,2]
[347381074,1735747840247,-502.25404249,0.00019178,2]
[347381076,1735747840256,-500.0,0.00019178,2]
[347381078,1735747840266,-502.08589558,0.00019178,2]
[347381080,1735747840275,-500.0,0.00019178,2]
[347381082,1735747840284,-500.0,0.00019178,2]
[347381084,1735747840293,-500.0,0.00019178,2]
[347381086,1735747840302,-579.23,0.00019178,2]
[347381088,1735747840312,-500.0,0.00019178,2]
[347381090,1735747840321,-500.0,0.00019178,2]
[347381092,1735747840330,-500.0,0.00019178,2]
[347381094,1735747840339,-500.0,0.00019178,2]
[347381096,1735747840348,-500.0,0.00019178,2]
[347381098,1735747840358,-500.0,0.00019178,2]
[347381100,1735747840367,-501.28226224,0.00019178,2]
[347381102,1735747840377,-500.0,0.00019178,2]
[347381104,1735747840386,-500.0,0.00019178,2]
[347381106,1735747840395,-251.5769895,0.00019178,2]
[347381108,1735747840405,-500.0,0.00019178,2]
[347381110,1735747840414,-500.0,0.00019178,2]
[347381112,1735747840424,-500.0,0.00019178,2]
[347381114,1735747840433,-500.0,0.00019178,2]
[347381116,1735747840442,-500.0,0.00019178,2]
[347381118,1735747840451,-500.0,0.00019178,2]
[347381120,1735747840460,-500.0,0.00019178,2]
[347381122,1735747840470,-500.0,0.00019178,2]
[347381124,1735747840479,-500.0,0.00019178,2]
[347381126,1735747840488,-500.0,0.00019178,2]
[347381129,1735747840497,-525.97916596,0.00019178,2]
[347381131,1735747840506,-500.0,0.00019178,2]
[347381133,1735747840516,-500.0,0.00019178,2]
[347381134,1735747840526,-514.51,0.00019178,2]
[347381137,1735747840535,-3511.0,0.00019178,2]
[347381139,1735747840548,-500.0,0.00019178,2]
[347381140,1735747840561,-500.0,0.00019178,2]
[347381142,1735747840571,-500.0,0.00019178,2]
[347381145,1735747840582,-500.0,0.00019178,2]
[347381147,1735747840591,-500.0,0.00019178,2]
[347381149,1735747840600,-500.87013837,0.00019178,2]
[347381151,1735747840611,-500.0,0.00019178,2]
[347381153,1735747840620,-500.0,0.00019178,2]
[347381155,1735747840630,-500.0,0.00019178,2]
[347381157,1735747840639,-500.0,0.00019178,2]
[347381159,1735747840648,-500.0,0.00019178,2]
[347381161,1735747840657,-500.0,0.00019178,2]
[347381163,1735747840667,-500.0,0.00019178,2]
[347381165,1735747840676,-500.0,0.00019178,2]
[347381167,1735747840685,-500.0,0.00019178,2]
[347381169,1735747840695,-520.17,0.00019178,2]
[347381171,1735747840704,-500.0,0.00019178,2]
[347381173,1735747840714,-500.0,0.00019178,2]
[347381175,1735747840723,-500.0,0.00019178,2]
[347381177,1735747840733,-500.0,0.00019178,2]
[347381179,1735747840742,-311.54460316,0.00019178,2]
[347381181,1735747840751,-500.0,0.00019178,2]
[347381183,1735747840760,-500.0,0.00019178,2]
[347381185,1735747840770,-500.0,0.00019178,2]
[347381187,1735747840779,-500.0,0.00019178,2]
[347381189,1735747840788,-500.0,0.00019178,2]
[347381191,1735747840798,-500.0,0.00019178,2]
[347381193,1735747840808,-500.0,0.00019178,2]
[347381195,1735747840817,-500.0,0.00019178,2]
[347381197,1735747840826,-861.62,0.00019178,2]
[347381199,1735747840836,-500.0,0.00019178,2]
[347381201,1735747840845,-902.01,0.00019178,2]
[347381203,1735747840855,-500.0,0.00019178,2]
[347381205,1735747840864,-500.0,0.00019178,2]
[347381207,1735747840872,-531.40298857,0.00019178,2]
[347381209,1735747840882,-500.0,0.00019178,2]
[347381211,1735747840891,-500.0,0.00019178,2]
[347381213,1735747840900,-500.0,0.00019178,2]
[347381215,1735747840910,-973.45,0.00019178,2]
[347381217,1735747840920,-500.0,0.00019178,2]
[347381219,1735747840929,-500.92148755,0.00019178,2]
[347381221,1735747840937,-500.0,0.00019178,2]
[347381223,1735747840948,-508.59994683,0.00019178,2]
[347381225,1735747840958,-500.0,0.00019178,2]
[347381227,1735747840967,-500.0,0.00019178,2]
[347381229,1735747840976,-587.48477502,0.00019178,2]
[347381231,1735747840985,-500.0,0.00019178,2]
[347381233,1735747840994,-500.0,0.00019178,2]
[347381235,1735747841003,-2221.8,0.00019178,2]
[347381237,1735747841013,-501.49543745,0.00019178,2]
[347381239,1735747841022,-500.0,0.00019178,2]
[347381241,1735747841031,-500.0,0.00019178,2]
[347381243,1735747841041,-500.0,0.00019178,2]
[347381245,1735747841050,-500.0,0.00019178,2]
[347381247,1735747841061,-500.0,0.00019178,2]
[347381249,1735747841070,-500.0,0.00019178,2]
[347381251,1735747841080,-567.6071516,0.00019178,2]
[347381253,1735747841089,-733.14,0.00019178,2]
[347381255,1735747841099,-500.0,0.00019178,2]
[347381257,1735747841109,-500.0,0.00019178,2]
[347381259,1735747841118,-500.0,0.00019178,2]
[347381261,1735747841127,-500.0,0.00019178,2]
[347381262,1735747841137,-500.0,0.00019178,2]
[347381263,1735747841146,-500.0,0.00019178,2]
[347381264,1735747841156,-500.0,0.00019178,2]
[347381265,1735747841165,-500.0,0.00019178,2]
[347381266,1735747841174,-500.0,0.00019178,2]
[347381267,1735747841184,-509.87657925,0.00019178,2]
[347381268,1735747841193,-563.52,0.00019178,2]
[347381269,1735747841203,-500.0,0.00019178,2]
[347381270,1735747841212,-500.0,0.00019178,2]
[347381271,1735747841222,-500.0,0.00019178,2]
[347381272,1735747841231,-500.0,0.00019178,2]
[347381273,1735747841241,-500.0,0.00019178,2]
[347381274,1735747841251,-500.0,0.00019178,2]
[347381275,1735747841260,-500.0,0.00019178,2]
[347381276,1735747841270,-500.0,0.00019178,2]
[347381277,1735747841279,-500.0,0.00019178,2]
[347381278,1735747841289,-500.0,0.00019178,2]
[347381279,1735747841298,-500.0,0.00019178,2]
[347381280,1735747841309,-503.21414548,0.00019178,2]
[347381281,1735747841319,-9800.28,0.00019178,2]
[347381282,1735747841327,-804.67,0.00019178,2]
[347381283,1735747841336,-500.0,0.00019178,2]
[347381284,1735747841347,-559.52565334,0.00019178,2]
[347381285,1735747841356,-503.02719017,0.00019178,2]
[347381286,1735747841365,-500.0,0.00019178,2]
[347381287,1735747841375,-727.53,0.00019178,2]
[347381288,1735747841384,-533.35977347,0.00019178,2]
[347381290,1735747841393,-500.0,0.00019178,2]
[347381292,1735747841402,-501.52530935,0.00019178,2]
[347381294,1735747841411,-500.0,0.00019178,2]
[347381296,1735747841421,-500.0,0.00019178,2]
[347381298,1735747841430,-500.0,0.00019178,2]
[347381300,1735747841439,-343.57039569,0.00019178,2]
[347381302,1735747841449,-500.0,0.00019178,2]
[347381304,1735747841458,-500.0,0.00019178,2]
[347381306,1735747841467,-500.0,0.00019178,2]
[347381308,1735747841477,-500.0,0.00019178,2]
[347381310,1735747841487,-1176.3,0.00019178,2]
[347381312,1735747841496,-225.85997549,0.00019178,2]
[347381314,1735747841506,-500.0,0.00019178,2]
[347381317,1735747841517,-500.0,0.00019178,2]
[347381319,1735747841526,-500.0,0.00019178,2]
[347381321,1735747841535,-500.0,0.00019178,2]
[347381323,1735747841549,-500.0,0.00019178,2]
[347381325,1735747841558,-500.0,0.00019178,2]
[347381327,1735747841568,-500.0,0.00019178,2]
[347381329,1735747841577,-500.0,0.00019178,2]
[347381331,1735747841587,-500.0,0.00019178,2]
[347381333,1735747841596,-500.0,0.00019178,2]
[347381335,1735747841605,-500.0,0.00019178,2]
[347381337,1735747841615,-500.0,0.00019178,2]
[347381339,1735747841627,-500.0,0.00019178,2]
[347381341,1735747841636,-500.0,0.00019178,2]
[347381343,1735747841646,-500.0,0.00019178,2]
[347381345,1735747841655,-500.0,0.00019178,2]
[347381347,1735747841664,-500.0,0.00019178,2]
[347381349,1735747841674,-500.0,0.00019178,2]
[347381351,1735747841684,-500.0,0.00019178,2]
[347381353,1735747841693,-500.0,0.00019178,2]
[347381355,1735747841702,-500.0,0.00019178,2]
[347381357,1735747841712,-500.0,0.00019178,2]
[347381359,1735747841721,-627.85739977,0.00019178,2]
[347381361,1735747841731,-500.0,0.00019178,2]
[347381363,1735747841740,-46.51358684,0.00019178,2]
[347381480,1735747842781,-453.48641316,0.00019178,2]
[347381483,1735747842791,-501.5174232,0.00019178,2]
[347381485,1735747842800,-916.68,0.00019178,2]
[347381487,1735747842811,-502.38657266,0.00019178,2]
[347381489,1735747842820,-1962.8,0.00019178,2]
[347381491,1735747842830,-500.0,0.00019178,2]
[347381492,1735747842839,-500.0,0.00019178,2]
[347381495,1735747842848,-500.79764464,0.00019178,2]
[347381497,1735747842858,-500.0,0.00019178,2]
[347381499,1735747842867,-500.0,0.00019178,2]
[347381501,1735747842877,-1609.81,0.00019178,2]
[347381502,1735747842886,-500.0,0.00019178,2]
[347381505,1735747842895,-500.0,0.00019178,2]
[347381507,1735747842905,-500.0,0.00019178,2]
[347381509,1735747842914,-500.0,0.00019178,2]
[347381511,1735747842924,-500.0,0.00019178,2]
[347381513,1735747842933,-500.0,0.00019178,2]
[347381515,1735747842942,-500.0,0.00019178,2]
[347381518,1735747842951,-500.0,0.00019178,2]
[347381520,1735747842960,-500.0,0.00019178,2]
[347381524,1735747842971,-500.0,0.00019178,2]
[347381542,1735747842980,-799.96,0.00019178,2]
[347381546,1735747843113,-506.1510178,0.00019178,2]
[347381548,1735747843124,-500.0,0.00019178,2]
[347381550,1735747843133,-500.0,0.00019178,2]
[347381552,1735747843143,-500.0,0.00019178,2]
[347381554,1735747843154,-235.70407286,0.00019178,2]
[347381556,1735747843163,-501.876027,0.00019178,2]
[347381558,1735747843173,-898.33,0.00019178,2]
[347381560,1735747843183,-500.0,0.00019178,2]
[347381562,1735747843193,-462.9768189,0.00019178,2]
[347381563,1735747843202,-500.0,0.00019178,2]
[347381566,1735747843212,-500.0,0.00019178,2]
[347381568,1735747843222,-500.0,0.00019178,2]
[347381569,1735747843231,-500.0,0.00019178,2]
[347381571,1735747843240,-698.3,0.00019178,2]
[347381573,1735747843250,-500.0,0.00019178,2]
[347381575,1735747843260,-500.0,0.00019178,2]
[347381578,1735747843269,-544.75,0.00019178,2]
[347381579,1735747843279,-500.0,0.00019178,2]
[347381582,1735747843289,-500.0,0.00019178,2]
[347381583,1735747843298,-500.0,0.00019178,2]
[347381586,1735747843307,-279.42170363,0.00019178,2]
[347381588,1735747843319,-512.0266464,0.00019178,2]
[347381589,1735747843328,-500.0,0.00019178,2]
[347381591,1735747843338,-500.0,0.00019178,2]
[347381593,1735747843347,-327.13738913,0.00019178,2]
[347381595,1735747843357,-745.63,0.00019178,2]
[347381597,1735747843366,-500.0,0.00019178,2]
[347381599,1735747843376,-1000.0,0.00019178,2]
[347381601,1735747843386,-500.0,0.00019178,2]
[347381603,1735747843395,-1426.84,0.00019178,2]
[347381606,1735747843405,-500.0,0.00019178,2]
[347381607,1735747843415,-500.0,0.00019178,2]
[347381610,1735747843424,-500.0,0.00019178,2]
[347381612,1735747843434,-517.34,0.00019178,2]
[347381613,1735747843443,-500.0,0.00019178,2]
[347381615,1735747843452,-464.8778281,0.00019178,2]
[347381618,1735747843471,-531.5321719,0.00019178,2]
[347381620,1735747843480,-498.4678281,0.00019178,2]
[347381623,1735747843491,-1.5321719,0.00019178,2]
[347381625,1735747843500,-253.58539077,0.00019178,2]
[347381627,1735747843512,-246.41460923,0.00019178,2]
[347381629,1735747843523,-309.98673106,0.00019178,2]
[347381631,1735747843532,-90.00063934,0.00019178,2]
[347381679,1735747845886,-409.99936066,0.00019178,2]
[347381680,1735747845896,-500.0,0.00019178,2]
[347381681,1735747845906,-500.0,0.00019178,2]
[347381682,1735747845916,-427.51048734,0.00019178,2]
[347381713,1735747891320,160.0,0.00023026,120]
[347381715,1735747951287,160.0,0.00024036,120]
[347381716,1735748011820,160.0,0.00024096,120]
[347381717,1735748071424,160.0,0.00024164,120]
[347381719,1735748131375,160.0,0.00021865,120]
[347381720,1735748191418,160.0,0.00022806,120]
[347381721,1735748251292,160.0,0.0002189,120]
[347381723,1735748311282,160.0,0.00022059,120]
[347381725,1735748371855,160.0,0.0002222,120]
[347381727,1735748434777,160.0,0.00022861,120]
[347381728,1735748491853,160.0,0.00022867,120]
[347381729,1735748552912,160.0,0.00023336,120]
[347381730,1735748611337,160.0,0.00023542,120]
[347381731,1735748614959,2324.20474607,0.00015022,14]